[Event "ChessKid Cup Div-II 2023"]
[Site "Online"]
[Date "2023.05.23"]
[Round "51.3"]
[White "Bharath Subramaniyam H"]
[Black "Andreikin, Dmitry"]
[Result "0-1"]
[ECO "A45"]
[WhiteElo "2517"]
[BlackElo "2729"]
[Annotator "TA"]
[PlyCount "86"]
[EventDate "2023.05.21"]
[EventType "k.o."]
[EventCountry "NET"]
[SourceTitle "playchess.com"]
[Source "ChessBase"]
[SourceQuality "1"]
[TimeControl "900+3"]

{[%evp 9,86,37,37,27,18,19,29,18,18,27,29,26,78,73,64,52,65,60,74,49,52,-42,-22,-128,-139,-122,-136,-134,-116,-210,-87,-80,-90,-106,-107,-113,-111,-134,-112,-111,-87,-107,-107,-187,-184,-174,-172,-212,-179,-186,-180,-383,-362,-427,-432,-427,-381,-442,-416,-514,-481,-645,-524,-493,0,-445,0,-942,-900,-1130,-1117,-1096,-1095,-6219,-1328,-1203,-1257,-29982,-11691]} 1. d4 {[%emt 0:00:08]} Nf6 {[%emt 0:03:15]} 2. Bf4 {[%emt 0:00:03]} c5 {[%emt 0:00:06]} 3. d5 {[%emt 0:00:11]} g6 {[%emt 0:00:05]} 4. Nc3 {[%emt 0:00:07]} d6 {[%emt 0:00:07]} 5. e4 {[%emt 0:00:04]} Bg7 {[%emt 0:00:04]} 6. Bb5+ {[%emt 0:00:12] A45: Trompowsky Attack.} Bd7 {[%emt 0:00:14] ...Bxb5 would be deadly.} 7. a4 {[%emt 0:00:04]} O-O {[%emt 0:00:49]} 8. Nf3 {[%emt 0:00:05] White has an edge.} Na6 {[%emt 0:00:21]} 9. O-O {[%emt 0:00:07]} Nc7 {[%emt 0:00:04]} 10. Bc4 {[%emt 0:00:15]} Bg4 {[%emt 0:00:05]} (10... a6 $11 {keeps the balance.}) 11. h3 $16 {[%emt 0:00:18]} Bxf3 {[%emt 0:00:03]} 12. Qxf3 {[%emt 0:00:03]} Nd7 {[%emt 0:00:04]} 13. Qe2 {[%emt 0:00:04] [#] Black is weak on the light squares} Rb8 $146 {[%emt 0:00:37]} ({Predecessor:} 13... b6 14. Bg3 a6 15. Kh1 Ne5 16. Bxe5 Bxe5 17. f4 Bg7 18. e5 b5 19. axb5 axb5 20. Nxb5 Nxb5 21. Rxa8 Qxa8 22. Bxb5 Qxd5 {1-0 Chan,Y (2316)-Barbosa,E (2509) Titled Tuesday intern op 18th Aug blitz 2020 (9)}) 14. Bg3 {[%emt 0:00:31]} a6 {[%emt 0:00:20][%cal Ba7a6,Ba6b5][%mdl 32]} 15. f4 {[%emt 0:00:16]} (15. a5 $14) 15... b5 $15 {[%emt 0:00:11]} 16. axb5 {[%emt 0:00:03]} (16. Ba2 $1 $11) 16... Bxc3 $1 $17 {[%emt 0:00:10]} 17. bxc3 {[%emt 0:00:18]} axb5 {[%emt 0:00:04]} 18. Ba2 {[%emt 0:00:07] [#]} c4 $1 {[%emt 0:00:03]} 19. Bb1 {[%emt 0:00:31] [#]} (19. Rad1 $17 {was worth a try.}) 19... Ra8 {[%emt 0:00:23]} (19... f5 $1 $19 20. Bh4 fxe4 21. Qxe4 Nf6 22. Bxf6 exf6) 20. Rxa8 {[%emt 0:00:06]} Qxa8 {[%emt 0:00:03]} 21. f5 {[%emt 0:00:15]} Ne8 {[%emt 0:00:40]} 22. Bf2 {[%emt 0:00:22]} Nef6 {[%emt 0:00:14] Inhibits Qg4.} 23. Bd4 {[%emt 0:00:19]} Ne5 {[%emt 0:00:04]} 24. Qe3 {[%emt 0:00:37]} Kg7 {[%emt 0:00:21] Black is more active.} 25. Qf4 {[%emt 0:01:12]} Nfd7 {[%emt 0:00:09]} 26. g4 {[%emt 0:00:09]} (26. fxg6 fxg6 27. Qg3 Rxf1+ 28. Kxf1 Qa1) (26. Be3 $17) 26... f6 $19 {[%emt 0:00:06]} ({Not} 26... Kg8 27. Kf2 $15) 27. h4 {[%emt 0:00:13]} (27. Be3 g5 28. Qf2 Qa3) 27... Qe8 {[%emt 0:00:22]} 28. Kg2 {[%emt 0:00:59]} gxf5 {[%emt 0:00:16]} 29. exf5 {[%emt 0:00:17]} Qf7 {[%emt 0:00:10]} 30. g5 $2 {[%emt 0:00:37]} (30. Qe4) 30... Qxd5+ {[%emt 0:00:19]} 31. Kh3 {[%emt 0:00:06]} Kf7 {[%emt 0:00:06]} 32. Be3 {[%emt 0:00:28]} Nc5 {[%emt 0:00:38]} 33. Qd4 {[%emt 0:00:30] Against Ne4} Qe4 {[%emt 0:00:16]} 34. Kg3 {[%emt 0:00:48]} Rg8 {[%emt 0:00:13]} 35. Ba2 {[%emt 0:00:26]} Ra8 {[%emt 0:00:17]} 36. Bb1 {[%emt 0:00:19]} Rg8 $2 {[%emt 0:00:04]} ({But not} 36... fxg5 $2 37. hxg5 Ra3 38. Kh3 $19) (36... Ra1 $19 37. Kh3 fxg5 38. hxg5 Ra3 39. Qxe4 Nxe4) 37. Kh3 $2 {[%emt 0:00:38][%mdl 8192]} (37. Ba2 $1 $11 {and White stays safe.} Qa8 38. Bf4) 37... Ra8 $2 {[%emt 0:00:14]} (37... Kf8 $19 38. Qxe4 Nxe4) 38. h5 $2 {[%emt 0:00:26][%mdl 8192]} (38. Kg3 $11 Ra3 39. gxf6) 38... fxg5 {[%emt 0:00:09][%cal Bf6g5,Bg5g4][%mdl 32]} 39. f6 {[%emt 0:00:03]} g4+ {[%emt 0:00:38]} 40. Kg3 {[%emt 0:00:12]} exf6 {[%emt 0:00:15]} 41. Qd2 {[%emt 0:02:04] [#]} Qf3+ $3 {[%emt 0:00:49][%mdl 512]} 42. Rxf3 {[%emt 0:00:07]} Ne4+ {[%emt 0:00:04][%mdl 64] Deflection, Double Attack. Excellent horsemanship.} 43. Kh4 {[%emt 0:00:06]} Nxf3+ {[%emt 0:00:04] An interesting game.   Weighted Error Value: White=0.96/Black=0.62} 0-1

[Event "ChessKid Cup Div-II 2023"]
[Site "Online"]
[Date "2023.05.24"]
[Round "52.1"]
[White "Le, Quang Liem"]
[Black "Meier, Georg"]
[Result "1-0"]
[ECO "D37"]
[WhiteElo "2728"]
[BlackElo "2614"]
[Annotator "TA"]
[PlyCount "93"]
[EventDate "2023.05.21"]
[EventType "k.o."]
[EventCountry "NET"]
[SourceTitle "playchess.com"]
[Source "ChessBase"]
[SourceQuality "1"]
[TimeControl "900+3"]

{[%evp 15,93,4,5,6,8,6,4,7,13,8,8,3,4,10,10,9,10,10,14,10,14,10,14,9,25,7,18,4,12,8,6,0,0,0,0,0,0,0,0,0,0,0,0,0,1,0,0,0,0,0,0,0,0,0,0,0,0,0,0,0,0,0,0,0,0,0,0,0,12,20,10,12,263,248,396,397,494,450,464,470]} 1. d4 {[%emt 0:00:04]} e6 {[%emt 0:00:05]} 2. Nf3 {[%emt 0:00:01]} Nf6 {[%emt 0:00:01]} 3. c4 {[%emt 0:00:01]} d5 {[%emt 0:00:05]} 4. Nc3 {[%emt 0:00:02]} Be7 {[%emt 0:00:02]} 5. Bf4 {[%emt 0:00:25]} O-O {[%emt 0:00:02]} 6. e3 {[%emt 0:00:10]} Nbd7 {[%emt 0:00:01]} 7. c5 {[%emt 0:00:01]} c6 {[%emt 0:00:01]} 8. Bd3 {[%emt 0:00:30]} b6 {[%emt 0:00:02]} 9. b4 {[%emt 0:00:01] D37: Queen's Gambit Declined: 5 Bf4.} a5 {[%emt 0:00:00]} 10. a3 {[%emt 0:00:02]} Ba6 {[%emt 0:00:01] aiming for ...Bxd3.} 11. O-O {[%emt 0:00:02] The position is equal.} Qc8 {[%emt 0:00:11]} 12. h3 {[%emt 0:00:08]} Qb7 {[%emt 0:00:04]} 13. Rb1 {[%emt 0:00:18]} axb4 {[%emt 0:00:02]} 14. axb4 {[%emt 0:00:02]} Bxd3 {[%emt 0:00:35]} 15. Qxd3 {[%emt 0:00:00]} Ra3 {[%emt 0:00:02][%cal Of6e4]} 16. Qc2 {[%emt 0:00:06] Repels Ne4} Rfa8 {[%emt 0:00:02]} 17. Rfc1 {[%emt 0:00:05]} h6 {[%emt 0:00:06]} 18. Rb2 {[%emt 0:00:54]} Ra1 {[%emt 0:01:37]} 19. Nd2 {[%emt 0:00:24][%cal Bf3d2,Bd2b3,Bb3a5][%mdl 32]} Bd8 {[%emt 0:00:12] [#]} 20. Nb3 $146 {[%emt 0:00:40]} ({Predecessor:} 20. Rxa1 Rxa1+ 21. Rb1 {½-½ Martinovic,S (2483)-Prohaszka,P (2511) Mitropa Cup 28th 2009 (3)}) 20... Rxc1+ {[%emt 0:00:04]} 21. Qxc1 {[%emt 0:00:00]} Bc7 {[%emt 0:00:25]} 22. Bxc7 {[%emt 0:00:23]} Qxc7 {[%emt 0:00:01]} 23. cxb6 {[%emt 0:00:01]} Qxb6 {[%emt 0:00:15]} 24. Na5 {[%emt 0:00:04]} e5 {[%emt 0:00:57]} 25. Ne2 {[%emt 0:02:25]} exd4 {[%emt 0:00:20]} 26. exd4 {[%emt 0:00:00]} Ra6 {[%emt 0:02:03]} 27. Qb1 {[%emt 0:00:57][%cal Oa5c6]} Qb5 {[%emt 0:01:05]} 28. Nc3 {[%emt 0:00:24]} Qb8 {[%emt 0:00:22]} 29. Na4 {[%emt 0:01:47]} Qb5 {[%emt 0:00:46]} 30. Qc2 {[%emt 0:00:53]} g6 {[%emt 0:01:21]} 31. Nc3 {[%emt 0:00:53]} Qb6 {[%emt 0:00:13]} 32. Qd2 {[%emt 0:00:45]} Kg7 {[%emt 0:00:13]} 33. Rb1 {[%emt 0:00:11][%cal Oa5c6]} Ra8 {[%emt 0:00:05]} 34. Qd3 {[%emt 0:00:22]} Ne8 {[%emt 0:01:48]} 35. Na4 {[%emt 0:00:21]} Qb5 {[%emt 0:00:00]} 36. Qxb5 {[%emt 0:00:07]} cxb5 {[%emt 0:00:01]} 37. Nc5 {[%emt 0:00:07]} Nb6 {[%emt 0:00:08]} 38. Re1 {[%emt 0:00:09]} Kf8 {[%emt 0:00:13]} 39. g4 {[%emt 0:00:29]} Nd6 {[%emt 0:00:16]} 40. Nc6 {[%emt 0:00:04]} Rc8 {[%emt 0:01:12]} 41. Ne5 {[%emt 0:00:05]} Kg7 {[%emt 0:00:06]} 42. Ra1 {[%emt 0:00:07]} Ra8 {[%emt 0:00:04]} 43. Ra5 {[%emt 0:00:11]} f6 $2 {[%emt 0:00:16][%mdl 8192] [#] Loses the game.} (43... Re8 $11 {and Black has nothing to worry.}) 44. Ne6+ $1 $18 {[%emt 0:00:22]} Kh7 {[%emt 0:00:01] [#]} (44... Kg8 $142) 45. Nd7 $1 {[%emt 0:00:01][%mdl 576] Deflection} Rxa5 {[%emt 0:00:11]} (45... Ndc4 46. Nxf6+) 46. Nxf6+ {[%emt 0:00:02]} (46. Nxb6 $2 {is the wrong capture.} Ra2 47. f3 Re2 $19) 46... Kh8 {[%emt 0:00:04]} 47. bxa5 {[%emt 0:00:01] Weighted Error Value: White=0.01 (flawless) /Black=0.19 (very precise)} 1-0

[Event "ChessKid Cup Div-II 2023"]
[Site "Online"]
[Date "2023.05.24"]
[Round "52.1"]
[White "Eljanov, Pavel"]
[Black "Mamedyarov, Shakhriyar"]
[Result "1/2-1/2"]
[ECO "C47"]
[WhiteElo "2705"]
[BlackElo "2738"]
[Annotator "TA"]
[PlyCount "109"]
[EventDate "2023.05.21"]
[EventType "k.o."]
[EventCountry "NET"]
[SourceTitle "playchess.com"]
[Source "ChessBase"]
[SourceQuality "1"]
[TimeControl "900+3"]

{[%evp 17,109,0,0,8,5,0,7,0,0,0,14,10,16,0,0,0,0,0,0,0,0,0,0,0,0,0,0,0,0,0,0,0,0,0,0,0,0,0,0,0,0,0,0,0,0,0,0,0,0,0,0,0,0,0,0,0,0,0,0,0,0,0,0,0,0,0,0,0,0,0,0,0,0,0,0,0,0,0,0,0,0,0,0,0,0,0,0,0,0,0,0,0,0,0]} 1. e4 {[%emt 0:00:05]} e5 {[%emt 0:00:09]} 2. Nf3 {[%emt 0:00:02]} Nc6 {[%emt 0:00:03]} 3. Nc3 {[%emt 0:00:01]} Nf6 {[%emt 0:00:04]} 4. d4 {[%emt 0:00:01]} exd4 {[%emt 0:00:02]} 5. Nxd4 {[%emt 0:00:00]} Bb4 {[%emt 0:00:01]} 6. Nxc6 {[%emt 0:00:02]} bxc6 {[%emt 0:00:00]} 7. Bd3 {[%emt 0:00:01]} d5 {[%emt 0:00:03]} 8. exd5 {[%emt 0:00:01]} cxd5 {[%emt 0:00:01]} 9. O-O {[%emt 0:00:03]} O-O {[%emt 0:00:02] The position is equal.} 10. h3 {[%emt 0:00:01] C47: Scotch Four Knights and Four Knights with 4 g3.} c6 {[%emt 0:00:04]} 11. Qf3 {[%emt 0:00:01]} Re8 {[%emt 0:00:25]} 12. Bf4 {[%emt 0:00:07]} Bd6 {[%emt 0:00:12]} 13. Rfe1 {[%emt 0:00:08]} Bxf4 {[%emt 0:00:20]} 14. Qxf4 {[%emt 0:00:14]} Be6 {[%emt 0:00:13]} 15. Na4 {[%emt 0:00:59] [#]} Qa5 $146 {[%emt 0:01:39]} ({Predecessor:} 15... a5 16. c3 Qb8 17. Qd4 Nd7 18. Re3 Qd6 19. Rae1 c5 20. Qh4 Nf8 21. c4 d4 {1-0 Seyfried,C (2176)-Schwing,H (2261) GER Cup Wiesbaden-Niedernhausen 2015 (2.6)}) 16. b3 {[%emt 0:01:45]} c5 {[%emt 0:00:22][%cal Oc5c4]} 17. c4 {[%emt 0:00:53]} dxc4 {[%emt 0:01:53]} 18. Bxc4 {[%emt 0:00:02]} Bxc4 {[%emt 0:00:02]} 19. Rxe8+ {[%emt 0:00:02]} Rxe8 {[%emt 0:00:01]} 20. Qxc4 {[%emt 0:00:01]} Re1+ {[%emt 0:00:04]} 21. Rxe1 {[%emt 0:00:02]} Qxe1+ $11 {[%emt 0:00:00][%mdl 4096] Endgame KQN-KQN} 22. Qf1 {[%emt 0:00:21]} Qd2 {[%emt 0:00:05]} 23. Nxc5 {[%emt 0:00:16]} Qxa2 {[%emt 0:00:03]} 24. Qe1 {[%emt 0:01:44]} h5 {[%emt 0:00:35]} 25. Qe5 {[%emt 0:00:43]} a5 {[%emt 0:00:47]} 26. Qd4 {[%emt 0:01:17]} Qb1+ {[%emt 0:00:25]} 27. Kh2 {[%emt 0:00:01]} Qc2 {[%emt 0:00:37]} 28. g3 {[%emt 0:00:02]} Qf5 {[%emt 0:00:14]} 29. Kg2 {[%emt 0:00:09]} g6 {[%emt 0:00:10]} 30. Nb7 {[%emt 0:02:15][%cal Ob7a5]} Ne4 {[%emt 0:00:28] [#] Threatens to win with ...Ng5.} 31. Nd6 {[%emt 0:01:39]} Nxd6 {[%emt 0:00:06]} 32. Qxd6 {[%emt 0:00:01] KQ-KQ} Qe4+ {[%emt 0:00:06]} 33. Kg1 {[%emt 0:00:04]} Kh7 {[%emt 0:00:14] Hoping for ...Qb1+.} 34. Qc7 {[%emt 0:00:10]} Qe1+ {[%emt 0:00:07]} 35. Kg2 {[%emt 0:00:01]} Qe4+ {[%emt 0:00:01]} 36. Kg1 {[%emt 0:00:01]} Qd5 {[%emt 0:00:00]} 37. h4 {[%emt 0:00:03]} Kg7 {[%emt 0:00:03]} 38. Qc3+ {[%emt 0:00:02]} Kf8 {[%emt 0:00:02]} 39. Qc7 {[%emt 0:00:05]} Qd1+ {[%emt 0:00:19]} 40. Kg2 {[%emt 0:00:01]} Qd5+ {[%emt 0:00:03]} 41. Kg1 {[%emt 0:00:01]} Qd2 {[%emt 0:00:03]} 42. Qc8+ {[%emt 0:00:11]} Kg7 {[%emt 0:00:02] [#] ...Qd1+ is the strong threat.} 43. Qc4 {[%emt 0:00:04]} Kf8 {[%emt 0:00:08]} 44. Qc8+ {[%emt 0:00:02]} Ke7 {[%emt 0:00:04]} 45. Qc7+ {[%emt 0:00:02]} Ke6 {[%emt 0:00:01]} 46. Qc6+ {[%emt 0:00:01]} Qd6 {[%emt 0:00:11]} 47. Qe4+ {[%emt 0:00:05]} Qe5 {[%emt 0:00:08]} 48. Qc6+ {[%emt 0:00:02]} Ke7 {[%emt 0:00:02]} 49. Qb7+ {[%emt 0:00:03]} Kf6 {[%emt 0:00:02]} 50. Qc6+ {[%emt 0:00:03]} Kg7 {[%emt 0:00:07]} 51. Qc4 {[%emt 0:00:02]} Qe1+ {[%emt 0:00:10]} 52. Kg2 {[%emt 0:00:01]} Qe5 {[%emt 0:00:01]} 53. Kg1 {[%emt 0:00:02]} Qe1+ {[%emt 0:00:00]} 54. Kg2 {[%emt 0:00:01]} Qe5 {[%emt 0:00:01]} 55. Kg1 {[%emt 0:00:01] An interesting draw.   Weighted Error Value: White=0.01 (flawless) /Black=0.01 (flawless)} 1/2-1/2

[Event "ChessKid Cup Div-II 2023"]
[Site "Online"]
[Date "2023.05.24"]
[Round "52.1"]
[White "Anton Guijarro, David"]
[Black "Le, Tuan Minh"]
[Result "0-1"]
[ECO "B51"]
[WhiteElo "2690"]
[BlackElo "2542"]
[Annotator "TA"]
[PlyCount "70"]
[EventDate "2023.05.21"]
[EventType "k.o."]
[EventCountry "NET"]
[SourceTitle "playchess.com"]
[Source "ChessBase"]
[SourceQuality "1"]
[TimeControl "900+3"]

{[%evp 9,70,18,19,16,25,15,12,0,7,9,6,9,10,16,14,10,7,4,17,0,27,14,40,8,53,19,15,8,23,27,33,26,50,47,41,42,78,21,65,0,0,0,0,-65,-77,-83,-78,-71,-44,-60,-7,-11,10,-18,-11,-65,-74,-81,-70,-750,-759,-29981,-29982]} 1. e4 {[%emt 0:00:04]} c5 {[%emt 0:00:08]} 2. Nf3 {[%emt 0:00:03]} d6 {[%emt 0:00:00]} 3. Bb5+ {[%emt 0:00:04]} Nd7 {[%emt 0:00:05]} 4. c3 {[%emt 0:00:08]} Ngf6 {[%emt 0:00:03]} 5. Bd3 {[%emt 0:00:02]} g6 {[%emt 0:00:05]} 6. O-O {[%emt 0:00:03] B51: Sicilian: Moscow Variation (3 Bb5+) without 3...Bd7.} Bg7 {[%emt 0:00:01]} 7. Re1 {[%emt 0:00:02]} O-O {[%emt 0:00:01]} 8. Bf1 {[%emt 0:00:03] The position is equal.} Ne5 {[%emt 0:00:01]} 9. Nxe5 {[%emt 0:00:06]} dxe5 {[%emt 0:00:00] [#]} 10. a4 $146 {[%emt 0:00:07]} ({Predecessor:} 10. Qc2 Ne8 11. d3 a5 12. Be3 Qc7 13. b3 b6 14. f3 Nd6 15. c4 Nb7 16. a3 {0-1 Stoyanov,N-Dimitrov,D (2272) BUL Cup2020 email}) 10... Be6 {[%emt 0:00:02]} 11. d3 {[%emt 0:00:13]} Qc7 {[%emt 0:00:03]} 12. Be3 {[%emt 0:00:21]} Rfd8 {[%emt 0:00:03]} 13. Qc2 {[%emt 0:01:05]} b6 {[%emt 0:01:04]} 14. Na3 {[%emt 0:00:22]} Nd7 {[%emt 0:00:13]} 15. Rec1 {[%emt 0:00:32]} Rac8 {[%emt 0:01:02]} 16. Qb1 {[%emt 0:00:23]} (16. a5 $5) 16... Qb7 {[%emt 0:00:43]} 17. b4 {[%emt 0:00:17]} cxb4 {[%emt 0:02:11]} 18. cxb4 {[%emt 0:00:00]} Nf6 {[%emt 0:00:32]} 19. f3 {[%emt 0:00:30]} Nh5 {[%emt 0:00:41]} 20. g3 {[%emt 0:00:39]} Qd7 {[%emt 0:00:54]} 21. Rxc8 {[%emt 0:02:16]} Rxc8 {[%emt 0:00:04]} 22. Nc4 {[%emt 0:00:13]} f5 {[%emt 0:00:31] [#]} 23. Bf2 {[%emt 0:00:41]} (23. b5 $1 $16) 23... Rf8 {[%emt 0:01:08]} 24. Qb2 {[%emt 0:00:28]} ({White should try} 24. Be2 $14) 24... fxe4 $11 {[%emt 0:00:57]} 25. fxe4 {[%emt 0:00:06]} Nf6 $1 {[%emt 0:00:19] Threatens to win with ...Ng4.} 26. Be2 {[%emt 0:04:14]} (26. Qxe5 $2 {too greedy.} Ng4 27. Qb5 Qxb5 28. axb5 Bxa1 $19) (26. a5 $11) 26... Bxc4 $15 {[%emt 0:00:20]} 27. dxc4 {[%emt 0:00:02]} Nxe4 {[%emt 0:00:00]} 28. Rd1 {[%emt 0:01:09]} Qh3 {[%emt 0:00:56] Black is more active.} 29. Be1 {[%emt 0:00:56][%cal Oc4c5]} Bh6 {[%emt 0:00:31] White is weak on the dark squares} ({Better is} 29... Ng5 $15 30. Qd2 Qf5) 30. Qb3 $11 {[%emt 0:00:15]} (30. Qxe5 {leads to mate.} Be3+) 30... e6 {[%emt 0:00:49] [#]} (30... Nf6 {simplifies} 31. Bf2 e6 32. Rf1 Ne4) 31. c5 $1 {[%emt 0:00:10]} bxc5 $40 {[%emt 0:00:19][%mdl 128] Black mounts an attack.} (31... Qf5 32. g4) 32. bxc5 {[%emt 0:00:09]} (32. Rd3 $1 $11) 32... Nxc5 $15 {[%emt 0:00:31]} 33. Qa3 {[%emt 0:00:01]} Ne4 {[%emt 0:00:13][%cal Bc5e4,Be4f6,Bf6g4][%mdl 32]} 34. Rd7 $2 {[%emt 0:00:07][%mdl 8192]} (34. Bb4 $15 Rb8 35. Bc5) 34... Nf6 $19 {[%emt 0:00:29] Hoping for ...Be3+.} 35. Rd1 {[%emt 0:00:36]} Ng4 {[%emt 0:00:10] Weighted Error Value: White=0.52/Black=0.14 (very precise)} 0-1

[Event "ChessKid Cup Div-II 2023"]
[Site "Online"]
[Date "2023.05.24"]
[Round "52.1"]
[White "Alekseenko, Kirill"]
[Black "Andreikin, Dmitry"]
[Result "0-1"]
[ECO "B41"]
[WhiteElo "2686"]
[BlackElo "2729"]
[Annotator "TA"]
[PlyCount "66"]
[EventDate "2023.05.21"]
[EventType "k.o."]
[EventCountry "NET"]
[SourceTitle "playchess.com"]
[Source "ChessBase"]
[SourceQuality "1"]
[TimeControl "900+3"]

{[%evp 9,66,15,17,20,25,0,21,17,41,0,71,32,28,12,16,15,14,27,20,0,0,0,0,-60,-62,-69,-80,-122,-106,-119,0,-405,-401,-739,-739,-718,-1453,-1465,-1444,-1181,-1148,-1131,-1127,-955,-945,-932,-919,-831,-898,-777,-756,-29976,-29978,-29987,-29988,-29988,-29989,-29989,-29977]} 1. e4 {[%emt 0:00:04]} c5 {[%emt 0:00:06]} 2. Nf3 {[%emt 0:00:02]} e6 {[%emt 0:00:01]} 3. d4 {[%emt 0:00:01]} cxd4 {[%emt 0:00:01]} 4. Nxd4 {[%emt 0:00:00]} a6 {[%emt 0:00:01]} 5. a3 {[%emt 0:00:07]} Nf6 {[%emt 0:01:15]} 6. Nc3 {[%emt 0:00:11] B41: Sicilian: Kan Variation: 5 c4.} d6 {[%emt 0:00:01]} 7. g4 {[%emt 0:00:23] 7.f3 is a critical line.} h6 {[%emt 0:00:20]} 8. Bg2 {[%emt 0:00:13] The position is equal.} Be7 {[%emt 0:00:17]} 9. Be3 {[%emt 0:00:17] [#]} (9. h4 $5 {[%cal Rg4g5]}) 9... Bd7 $146 {[%emt 0:00:48]} (9... Nc6 $1 $11 {keeps the balance.}) ({Predecessor:} 9... Qc7 10. h4 Nfd7 11. Qe2 Nc6 12. O-O-O Rb8 13. f4 b5 14. g5 hxg5 15. hxg5 Rxh1 16. Rxh1 {1-0 Nielsen,P (2645)-Mager,D (2224) Bundesliga 1617 2016 (13.8)}) 10. Qe2 {[%emt 0:00:46]} (10. h4 $5 {[%cal Rg4g5]}) 10... Nc6 {[%emt 0:00:02]} 11. Nxc6 {[%emt 0:00:23]} bxc6 {[%emt 0:00:30]} 12. f4 {[%emt 0:00:19]} Rb8 {[%emt 0:00:15]} 13. O-O-O {[%emt 0:02:08]} (13. Qxa6 Rxb2 14. O-O-O Rb8 $17) 13... Qa5 {[%emt 0:00:03]} 14. g5 {[%emt 0:01:24]} (14. Bf3 $5) 14... hxg5 {[%emt 0:00:23]} 15. fxg5 {[%emt 0:00:01]} Nh5 {[%emt 0:00:07]} 16. Rhf1 {[%emt 0:00:39]} (16. Bf3 $11 g6 17. Bxh5 Rxh5 18. h4) 16... e5 $1 $15 {[%emt 0:00:47][%cal Oh5f4,Be6e5,Be5f4][%mdl 32]} 17. Qc4 {[%emt 0:00:32] [#]} (17. Qf3 Nf4 18. Rd2 Rh4 $17) 17... Nf4 $1 {[%emt 0:01:34] And now ...Be6 would win.} 18. Bxf4 {[%emt 0:00:29]} (18. Rf2 Rxh2) 18... exf4 {[%emt 0:00:02]} 19. e5 {[%emt 0:01:15]} d5 {[%emt 0:00:15]} (19... Qxe5 $6 20. Bxc6 Bxc6 21. Qxc6+ Kf8 22. Qc7 $14 (22. Qxa6 Qe3+ 23. Rd2 Rxh2 $17)) (19... f3 $1 $17 {[%cal Rf3g2]} 20. Rxf3 Qxe5) 20. Nxd5 $2 {[%emt 0:00:20][%mdl 8192]} cxd5 $19 {[%emt 0:02:01]} (20... Bxg5 21. Nxf4 Qb5 22. Qc3 $15) 21. Bxd5 {[%emt 0:00:03] [#]} (21. Qxf4 $142 Be6 22. Rf3) 21... Bxa3 $1 {[%emt 0:00:13][%mdl 512]} 22. Bxf7+ {[%emt 0:00:37]} Kf8 {[%emt 0:00:01]} 23. Rxd7 {[%emt 0:00:30]} Bxb2+ {[%emt 0:00:11]} (23... Rxb2 $2 24. Qc8+) 24. Kd1 {[%emt 0:00:03]} Rxh2 {[%emt 0:00:01][%cal Ra5a1]} (24... Qxe5 25. Bg6) 25. Qa2 {[%emt 0:00:40]} Qb5 {[%emt 0:02:15][%cal Rb5f1]} ({Resist} 25... Qxe5 26. Bh5 $18 (26. Qxa6 Rb7 $11) (26. Qxa6 Rb7 $11)) 26. Rd3 {[%emt 0:00:03]} Qxe5 {[%emt 0:00:52][%csl Gh2][%cal Re5e2]} ({Worse is} 26... Bxe5 27. Bb3 $17) 27. Re1 {[%emt 0:01:17] Against Qe2+. White is weak on the dark squares} Qxg5 {[%emt 0:00:43] ( -> ...Qg4+)} 28. Bd5 {[%emt 0:01:12]} Qh5+ {[%emt 0:01:03]} 29. Bf3 {[%emt 0:00:08]} Qc5 {[%emt 0:00:00][%csl Gh2][%cal Rc5c2]} 30. c3 {[%emt 0:01:45]} Bxc3 {[%emt 0:00:45][%mdl 64] Discovered Attack. Black mates.} 31. Re2 {[%emt 0:00:27]} Qg1+ {[%emt 0:00:17]} 32. Kc2 {[%emt 0:00:01]} Rxe2+ {[%emt 0:00:01]} 33. Bxe2 {[%emt 0:00:01]} Rb2+ {[%emt 0:00:03] Excellently played by Andreikin!   Weighted Error Value: White=0.82/Black=0.11 (very precise)} 0-1

[Event "ChessKid Cup Div-II 2023"]
[Site "Online"]
[Date "2023.05.24"]
[Round "52.2"]
[White "Mamedyarov, Shakhriyar"]
[Black "Eljanov, Pavel"]
[Result "1-0"]
[ECO "D37"]
[WhiteElo "2738"]
[BlackElo "2705"]
[Annotator "TA"]
[PlyCount "39"]
[EventDate "2023.05.21"]
[EventType "k.o."]
[EventCountry "NET"]
[SourceTitle "playchess.com"]
[Source "ChessBase"]
[SourceQuality "1"]
[TimeControl "900+3"]

{[%evp 24,39,39,36,41,39,60,46,149,151,164,168,201,200,480,274,272,244]} 1. d4 {[%emt 0:00:03]} Nf6 {[%emt 0:00:04]} 2. c4 {[%emt 0:00:01]} e6 {[%emt 0:00:01]} 3. Nf3 {[%emt 0:00:01]} d5 {[%emt 0:00:04]} 4. Nc3 {[%emt 0:00:01]} Be7 {[%emt 0:00:03]} 5. a3 {[%emt 0:00:11]} O-O {[%emt 0:00:20]} 6. Bf4 {[%emt 0:00:03]} c5 {[%emt 0:00:16]} 7. dxc5 {[%emt 0:00:03]} Bxc5 {[%emt 0:00:22]} 8. e3 {[%emt 0:00:02]} Nc6 {[%emt 0:00:19]} 9. cxd5 {[%emt 0:00:14]} Nxd5 {[%emt 0:00:45]} 10. Nxd5 {[%emt 0:00:02]} exd5 {[%emt 0:00:02]} 11. Bd3 {[%emt 0:00:00]} Be7 {[%emt 0:00:30]} 12. O-O {[%emt 0:00:13]} Bf6 {[%emt 0:00:08]} 13. Rc1 {[%emt 0:00:11][%cal Ba1c1,Bc1c5,Bc5d5,Bd5h5][%mdl 32]} Bg4 {[%emt 0:00:47] D37: Queen's Gambit Declined: 5 Bf4.} 14. b4 {[%emt 0:00:27]} a6 {[%emt 0:00:20]} 15. h3 {[%emt 0:00:17]} Bh5 {[%emt 0:00:07]} (15... Be6 $14) 16. Rc5 $16 {[%emt 0:00:10][%cal Oc5d5] And now Rxd5! would win. White is more active.} Bxf3 {[%emt 0:05:02]} 17. Qxf3 {[%emt 0:00:04]} d4 {[%emt 0:00:00]} 18. Rd5 {[%emt 0:01:33] [#]} Qb6 $146 {[%emt 0:01:24] [#]} (18... Qe8 {was worth a try.} 19. Bg3 Be5 20. Bxh7+ Kxh7) ({Predecessor:} 18... Qe8 19. Bd6 Ne7 20. Rh5 Ng6 21. Bxf8 Nxf8 22. exd4 Bxd4 23. Qxb7 Ra7 24. Qe4 Qxe4 25. Bxe4 {1-0 Alonso Garcia,R (2345)-Delgado Crespo,M (2275) Saiz Memorial 1998}) 19. Bd6 {[%emt 0:00:15] This pair of bishops is nice.} (19. Rd6 $142) 19... Ne7 $18 {[%emt 0:00:21]} 20. Rh5 {[%emt 0:01:59] Black did not feel at home in the position after the opening.   Weighted Error Value: White=0.31/Black=0.67} 1-0